bitfinex/quotes_ETHUSD_20240711
["timestamp","ask_amount","ask_price","bid_price","bid_amount"]
[1720732582111,1.11062121,3118.6,3118.1,3.3977]
[1720732582412,1.11062121,3118.5,3118.2,0.05247513]
[1720732582697,1.11062121,3118.4,3118.1,3.3977]
[1720732582861,1.11062121,3118.3,3118.1,3.3977]
[1720732583054,3.20646,3118.7,3118.2,0.05247513]
[1720732583285,4.092625,3118.7,3118.1,3.3977]
[1720732583495,1.11059937,3118.6,3118.3,0.05240507]
[1720732583697,1.11059937,3118.5,3118.1,3.3977]
[1720732583863,1.11059937,3118.6,3118.4,0.05233502]
[1720732584070,1.11059937,3118.6,3118.1,3.3977]
[1720732584470,1.11059937,3118.6,3118.2,0.05247513]
[1720732584778,1.11059937,3118.6,3118.3,0.05240507]
[1720732584990,1.11059937,3118.6,3118.1,3.3977]
[1720732585300,1.11059937,3118.6,3118.2,0.05247513]
[1720732585599,1.11059937,3118.6,3118.1,3.3977]
[1720732585763,1.54230531,3118.6,3118.2,0.05247513]
[1720732585968,1.11059937,3118.5,3118.1,0.95]
[1720732586199,1.11059937,3118.5,3118.2,0.05247513]
[1720732586406,1.11059937,3118.6,3118.1,0.95]
[1720732586570,1.11059937,3118.5,3118.3,0.05240507]
[1720732586766,3.20646,3118.7,3118.1,0.95]
[1720732587098,1.11063078,3118.6,3118.2,0.05247513]
[1720732587269,1.11063078,3118.6,3118.1,0.95]
[1720732587464,1.11063078,3118.6,3118.3,0.05240507]
[1720732587671,1.11063078,3118.6,3118.1,0.95]
[1720732587893,1.11063078,3118.6,3118.4,0.05233502]
[1720732588104,1.11063078,3118.6,3118.1,0.95]
[1720732588264,1.11063078,3118.6,3118.5,0.05226497]
[1720732588467,1.11063078,3118.6,3118.1,0.95]
[1720732588468,1.54233986,3118.6,3118.1,0.95]
[1720732588671,6.41299,3118.7,3118.5,0.05226497]
[1720732588867,1.1106468,3118.6,3118.1,0.95]
[1720732589105,1.1106468,3118.5,3118.1,0.95]
[1720732589397,1.1106468,3118.4,3118.1,0.95]
[1720732589580,1.1106468,3118.3,3118.1,0.95]
[1720732589781,1.1106468,3118.2,3118.1,0.95]
[1720732590416,3.20668,3118.5,3118.1,0.95]
[1720732590602,1.11066229,3118.4,3118.1,0.95]
[1720732590924,1.1106803,3118.3,3118.1,0.95]
[1720732591079,1.1106803,3118.2,3117.9,0.95]
[1720732591291,1.1106803,3118.1,3117.9,0.95]
[1720732591595,3.20668,3118.5,3117.9,0.95]
[1720732591797,1.11067777,3118.4,3117.9,0.95]
[1720732592003,1.11067777,3118.3,3117.8,5.58867]
[1720732592214,1.11067777,3118.2,3117.8,6.53867]
[1720732592405,1.11067777,3118.4,3117.8,6.53867]
[1720732592578,1.11067777,3118.3,3117.8,6.53867]
[1720732592777,1.11067777,3118.2,3118.0,0.95]
[1720732592994,1.11067777,3118.4,3118.0,0.95]
[1720732593603,6.734108,3118.5,3118.0,0.95]
[1720732593800,4.31746039,3118.4,3118.0,0.95]
[1720732593994,1.11069039,3118.3,3118.0,0.95]
[1720732594294,1.11069039,3118.2,3118.0,0.95]
[1720732594502,1.11069039,3118.1,3117.8,3.3313]
[1720732594707,1.11069039,3118.3,3117.8,0.95]
[1720732595008,1.11069039,3118.2,3117.8,0.95]
[1720732595177,1.11069039,3118.2,3117.6,8.43]
[1720732595381,1.11069039,3118.2,3117.6,3.20754]
[1720732595714,1.11069039,3118.2,3117.7,0.95]
[1720732596310,1.8374347,3118.2,3117.7,0.95]
[1720732596477,1.11069039,3118.1,3117.7,0.95]
[1720732596810,1.11069039,3118.1,3117.8,0.05282568]
[1720732597010,0.72674431,3118.2,3117.7,0.95]
[1720732597186,1.11078187,3118.1,3117.9,0.0527556]
[1720732597387,1.11078187,3118.1,3117.7,0.95]
[1720732597708,1.11078187,3118.1,3117.8,0.05282568]
[1720732598079,1.11078187,3118.1,3117.7,0.95]
[1720732598315,4.31786187,3118.1,3117.9,0.0527556]
[1720732598479,1.29453449,3118.0,3117.8,0.05282568]
[1720732598814,1.11078187,3117.9,3117.5,0.00081721]
[1720732599177,1.11078187,3118.0,3117.5,0.00081721]
[1720732600623,1.11085934,3117.9,3117.5,0.00081721]
[1720732600820,1.11085934,3117.8,3117.5,0.00081721]
[1720732601016,1.11085934,3117.7,3117.5,0.00081721]
[1720732601222,1.11085934,3117.6,3117.5,0.00081721]
[1720732603325,3.20718,3118.0,3117.5,0.00081721]
[1720732603484,1.11086662,3117.6,3117.5,0.00081721]
[1720732603689,3.20718,3118.0,3117.5,0.00081721]
[1720732603989,1.1108543,3117.9,3117.5,0.00081721]
[1720732604295,1.1108543,3117.8,3117.5,0.00081721]
[1720732604520,1.11085788,3117.7,3117.5,0.00081721]
[1720732604834,3.20718,3118.0,3117.5,0.00081721]
[1720732605022,1.1108647,3117.9,3117.5,0.00081721]
[1720732605192,1.1108647,3117.8,3117.5,0.00081721]
[1720732605392,1.1108647,3117.9,3117.5,0.00081721]
[1720732606388,3.20759,3117.6,3117.5,0.00081721]
[1720732606722,7.5260447,3117.6,3117.5,0.00081721]
[1720732607293,7.52626968,3117.6,3117.5,0.00081721]
[1720732608627,7.52627835,3117.6,3117.5,0.00081721]
[1720732610825,7.52627687,3117.6,3117.5,0.00081721]
[1720732611031,8.62081456,3117.6,3117.5,0.00081721]
[1720732611739,8.62081456,3117.6,3117.5,0.04922944]
[1720732611941,8.62081456,3117.6,3117.5,0.00081721]
[1720732612150,8.62081456,3117.6,3117.5,0.04922944]
[1720732612324,8.62081456,3117.6,3117.5,0.00081721]
[1720732612530,8.62081456,3117.6,3117.5,0.04922944]
[1720732612732,8.62081456,3117.6,3117.5,0.00081721]
[1720732612934,8.62081456,3117.6,3117.5,0.04922944]
[1720732613133,8.62081456,3117.6,3117.5,0.00081721]
[1720732613329,8.62081456,3117.6,3117.5,0.04922944]
[1720732613535,8.62081456,3117.6,3117.5,0.00081721]
[1720732613715,8.62081456,3117.6,3117.5,0.04922944]
[1720732613910,8.62081456,3117.6,3117.5,0.00081721]
[1720732614112,8.62081456,3117.6,3117.5,0.04922944]
[1720732614447,8.62081797,3117.6,3117.5,0.04922944]
[1720732614938,8.6208208,3117.6,3117.5,0.04922944]
[1720732617128,8.62082316,3117.6,3117.5,0.04922944]
[1720732617713,8.6208202,3117.6,3117.5,0.04922944]
[1720732619344,10.9476202,3117.6,3117.5,0.04922944]
[1720732619549,11.8976202,3117.6,3117.5,0.04922944]
[1720732619743,11.8976202,3117.6,3117.5,0.00081721]
[1720732620816,11.89762325,3117.6,3117.5,0.00081721]
[1720732621018,10.94762325,3117.6,3117.5,0.00081721]
[1720732623751,10.94764812,3117.6,3117.5,0.00081721]
[1720732624246,10.94766743,3117.6,3117.5,0.00081721]
[1720732625939,13.94766743,3117.6,3117.5,0.00081721]
[1720732626467,13.94768604,3117.6,3117.5,0.00081721]
[1720732626852,11.62088604,3117.6,3117.5,0.00081721]
[1720732627072,10.50971769,3117.6,3117.5,0.00081721]
[1720732627271,11.62088477,3117.6,3117.5,0.00081721]
[1720732629468,11.62088477,3117.6,3117.5,0.04784409]
[1720732629768,11.62088477,3117.6,3117.5,0.00081721]
[1720732630268,11.62088477,3117.6,3117.5,0.04784409]
[1720732630473,11.62088477,3117.6,3117.5,0.00081721]
[1720732630648,10.50971769,3117.6,3117.5,0.04784409]
[1720732630846,11.6208924,3117.6,3117.5,0.00081721]
[1720732631061,11.6208924,3117.6,3117.5,0.04784409]
[1720732631250,11.6208924,3117.6,3117.5,0.00081721]
[1720732631579,14.8284824,3117.6,3117.5,0.04784409]
[1720732632584,14.82849456,3117.6,3117.5,0.04784409]
[1720732634178,13.71730769,3117.6,3117.5,0.04784409]
[1720732634338,14.82850408,3117.6,3117.5,0.04784409]
[1720732634541,13.71730769,3117.6,3117.5,0.04784409]
[1720732634776,14.82850436,3117.6,3117.5,0.04784409]
[1720732637079,14.82850818,3117.6,3117.5,0.04784409]
[1720732637648,14.82849944,3117.6,3117.5,0.04784409]
[1720732638267,15.77849944,3117.6,3117.5,0.04784409]
[1720732638472,18.17979944,3117.6,3117.5,0.04784409]
[1720732640841,18.1798056,3117.6,3117.5,0.04784409]
[1720732644344,18.17982321,3117.6,3117.5,0.04784409]
[1720732644824,17.06860769,3117.6,3117.5,0.04784409]
[1720732644999,18.17986888,3117.6,3117.5,0.04784409]
[1720732647629,18.17986649,3117.6,3117.5,0.00081721]
[1720732647764,18.17986689,3117.6,3117.5,0.00081721]
[1720732651296,18.17986695,3117.6,3117.5,0.00081721]
[1720732652119,18.17985952,3117.6,3117.5,0.00081721]
[1720732654608,17.06860769,3117.6,3117.5,0.00081721]
[1720732654827,18.17989405,3117.6,3117.5,0.00081721]
[1720732655326,18.17989278,3117.6,3117.5,0.00081721]
[1720732657746,17.06860769,3117.6,3117.5,0.00081721]
[1720732657915,18.17988737,3117.6,3117.5,0.00081721]
[1720732659284,7.52645968,3117.6,3117.5,0.00081721]
[1720732659542,4.31886968,3117.6,3117.5,2.46931721]
[1720732659910,7.52645968,3117.6,3117.5,0.04793494]
[1720732660223,9.32410565,3117.6,3117.5,0.04793494]
[1720732660420,12.53169565,3117.6,3117.5,0.00081721]
[1720732661141,15.53169565,3117.6,3117.5,0.00081721]
[1720732661347,14.42041597,3117.6,3117.5,0.00081721]
[1720732661515,15.53160092,3117.6,3117.5,0.00081721]
[1720732662051,15.53160018,3117.6,3117.5,0.00081721]
[1720732663046,18.03150018,3117.6,3117.5,0.00081721]
[1720732664538,17.08150018,3117.6,3117.5,0.00081721]
[1720732664853,18.03150018,3117.6,3117.5,0.00081721]
[1720732665222,16.92031597,3117.6,3117.5,0.00081721]
[1720732665445,12.32404861,3117.6,3117.5,0.00081721]
[1720732666339,15.53163861,3117.6,3117.5,0.00081721]
[1720732668032,14.42041597,3117.6,3117.5,0.00081721]
[1720732668253,15.5315967,3117.6,3117.5,0.00081721]
[1720732671651,15.5316262,3117.6,3117.5,0.00081721]
[1720732675023,14.42041597,3117.6,3117.5,0.00081721]
[1720732675222,15.53166539,3117.6,3117.5,0.00081721]
[1720732675633,15.53167713,3117.6,3117.5,0.00081721]
[1720732678169,15.53167996,3117.6,3117.5,0.00081721]
[1720732678666,15.53167803,3117.6,3117.5,0.00081721]
[1720732681164,14.42041597,3117.6,3117.5,0.00081721]
[1720732681367,15.53166974,3117.6,3117.5,0.00081721]
[1720732681535,15.53166981,3117.6,3117.5,0.00081721]
[1720732684871,17.81437619,3117.6,3117.5,0.00081721]
[1720732685040,3.20831,3116.9,3116.8,0.1126431]
[1720732685238,8.47794353,3116.9,3116.8,0.1126431]
[1720732685437,11.47794353,3116.9,3116.8,0.15897509]
[1720732686366,10.52794353,3116.9,3116.8,0.15897509]
[1720732686712,11.47794353,3116.9,3116.8,0.15897509]
[1720732687708,11.4780199,3116.9,3116.8,0.15897509]
[1720732688001,10.36662,3116.9,3116.8,0.15897509]
[1720732688202,11.47801988,3116.9,3116.8,0.15897509]
[1720732691399,11.83524899,3116.9,3116.8,0.15897509]
[1720732691604,12.94666473,3116.9,3116.8,0.15897509]
[1720732691976,18.57247473,3116.9,3116.8,0.15897509]
[1720732692690,18.57253938,3116.9,3116.8,0.15897509]
[1720732693974,18.57253938,3116.9,3116.8,0.15690515]
[1720732695203,18.57257382,3116.9,3116.8,0.15690515]
[1720732695507,17.46105899,3116.9,3116.8,0.15690515]
[1720732695681,18.57257322,3116.9,3116.8,0.15690515]
[1720732695881,18.57257322,3116.9,3116.8,1e-08]
[1720732696073,6.41766,3116.4,3116.3,7.48]
[1720732696283,4.32034423,3116.4,3116.3,7.48]
[1720732698010,4.32031077,3116.4,3116.3,7.48]
[1720732698181,5.27031077,3116.4,3116.3,7.48]
[1720732698506,8.47919703,3116.4,3116.3,7.48]
[1720732700593,3.20893,3116.3,3116.1,2.307]
[1720732700924,4.32046703,3116.3,3116.1,2.307]
[1720732701824,4.32047149,3116.3,3116.1,2.307]
[1720732703526,4.32047149,3116.3,3116.2,0.41809202]
[1720732704228,7.52940149,3116.3,3116.2,0.41809202]
[1720732705218,6.41786,3116.3,3116.2,0.41809202]
[1720732705396,7.52940124,3116.3,3116.2,0.41809202]
[1720732705799,7.52941802,3116.3,3116.2,0.41809202]
[1720732707139,8.47941802,3116.3,3116.2,0.41809202]
[1720732708023,7.36786,3116.3,3116.2,0.41809202]
[1720732708237,8.47937456,3116.3,3116.2,0.41809202]
[1720732708805,11.47941734,3116.3,3116.2,0.41809202]
[1720732710412,11.93291879,3116.3,3116.2,0.41809202]
[1720732710638,11.47941734,3116.3,3116.2,0.41809202]
[1720732712351,11.47942675,3116.3,3116.2,0.41809202]
[1720732715733,11.47952018,3116.3,3116.2,0.41809202]
[1720732716164,11.47952109,3116.3,3116.2,0.41809202]
[1720732718461,10.36786,3116.3,3116.2,0.41809202]
[1720732718628,11.47948164,3116.3,3116.2,0.41809202]
[1720732719043,10.36786,3116.3,3116.2,0.41809202]
[1720732719243,11.47949052,3116.3,3116.2,0.41809202]
[1720732720663,10.52949052,3116.3,3116.2,0.41809202]
[1720732720890,11.47949052,3116.3,3116.2,0.41809202]
[1720732721067,12.94831457,3116.3,3116.2,0.41809202]
[1720732722347,11.47949052,3116.3,3116.2,0.41809202]
[1720732722549,11.47945892,3116.3,3116.2,0.41809202]
[1720732725881,10.36786,3116.3,3116.2,0.41809202]
[1720732726060,11.47953176,3116.3,3116.2,0.41809202]
[1720732726484,11.47952195,3116.3,3116.2,0.41809202]
[1720732726691,12.94835915,3116.3,3116.2,0.41809202]
[1720732728861,12.94836692,3116.3,3116.2,0.41809202]
[1720732729391,11.8366972,3116.3,3116.2,0.41809202]
[1720732729569,12.94834038,3116.3,3116.2,0.41809202]
[1720732730922,12.94834038,3116.3,3116.2,0.37790998]
[1720732732974,12.94832284,3116.3,3116.2,0.37790998]
[1720732736289,11.8366972,3116.3,3116.2,0.37790998]
[1720732736489,12.9483478,3116.3,3116.2,0.37790998]
[1720732736791,12.94834819,3116.3,3116.2,0.37790998]
[1720732737779,10.52951099,3116.3,3116.2,0.37790998]
[1720732737994,11.47951099,3116.3,3116.2,0.37790998]
[1720732739133,11.42950419,3116.3,3116.2,0.37790998]
[1720732739806,11.42950077,3116.3,3116.2,0.37790998]
[1720732742315,11.42950612,3116.3,3116.2,0.37790998]
[1720732744846,12.89334173,3116.3,3116.2,0.37790998]
[1720732745793,11.78169561,3116.3,3116.2,0.37790998]
[1720732745918,12.89337405,3116.3,3116.2,0.37790998]
[1720732746270,14.99062561,3116.3,3116.2,0.37790998]
[1720732746469,16.10230947,3116.3,3116.2,0.37790998]
[1720732748635,16.10235804,3116.3,3116.2,0.37790998]
[1720732749125,14.99062561,3116.3,3116.2,0.37790998]
[1720732749473,16.10235908,3116.3,3116.2,0.37790998]
[1720732752598,14.99062561,3116.3,3116.2,0.37790998]
[1720732752969,16.10235929,3116.3,3116.2,0.37790998]
[1720732756253,16.10236339,3116.3,3116.2,0.37790998]
[1720732756604,16.26745592,3116.3,3116.2,0.37790998]
[1720732756781,16.26745726,3116.3,3116.2,0.37790998]
[1720732757595,21.75688726,3116.3,3116.2,0.37790998]
[1720732757791,23.25688726,3116.3,3116.2,0.37790998]
[1720732758127,23.25688726,3116.3,3116.2,0.04910749]
[1720732758625,12.83652,3116.1,3116.0,1e-08]
[1720732758935,3.21006,3115.2,3115.1,2.3118]
[1720732759246,4.32194484,3115.2,3115.1,2.34700043]
[1720732759597,4.32194719,3115.2,3115.1,2.34700043]
[1720732762800,4.32197409,3115.2,3115.1,2.34700043]
[1720732766257,3.21006,3115.2,3115.1,2.34700043]
[1720732766410,4.32193503,3115.2,3115.1,2.34700043]
[1720732766724,3.21006,3115.2,3115.1,2.34700043]
[1720732766920,4.32192489,3115.2,3115.1,2.34700043]
[1720732769123,4.32193492,3115.2,3115.1,2.34700043]
[1720732769752,3.21006,3115.2,3115.1,2.34700043]
[1720732769933,4.32194261,3115.2,3115.1,2.34700043]
[1720732772845,4.32194261,3115.2,3114.6,7.48]
[1720732772846,3.21025,3115.1,3114.9,2.4013]
[1720732773055,4.32215261,3115.0,3114.9,2.4013]
[1720732773262,3.21045,3114.9,3114.7,2.4013]
[1720732773408,1.11197165,3114.8,3114.7,2.4013]
[1720732776522,3.21045,3114.9,3114.7,2.4013]
[1720732776726,1.11197824,3114.8,3114.7,2.43582645]
[1720732777047,1.11197832,3114.8,3114.7,2.43582645]
[1720732778040,1.11197832,3114.8,3114.7,0.03452645]
[1720732778339,1.11197832,3114.8,3114.5,0.00082119]
[1720732778642,1.11197714,3114.7,3114.6,0.03468351]
[1720732779232,1.11197723,3114.7,3114.6,0.03468351]
[1720732780181,1.11197714,3114.7,3114.6,0.03468351]
[1720732782919,8.91537885,3114.7,3114.6,0.03468351]
[1720732783369,7.80340171,3114.7,3114.6,0.03468351]
[1720732783575,8.91556885,3114.7,3114.6,0.03468351]
[1720732783872,7.96556885,3114.7,3114.6,0.03468351]
[1720732784088,8.91556885,3114.7,3114.6,0.03468351]
[1720732786755,7.80340171,3114.7,3114.6,0.03468351]
[1720732786947,8.91559569,3114.7,3114.6,0.03468351]
[1720732787180,7.80340171,3114.7,3114.6,0.03468351]
[1720732787338,8.91559558,3114.7,3114.6,0.03468351]
[1720732789477,7.80340171,3114.7,3114.6,0.03468351]
[1720732789684,8.91560983,3114.7,3114.6,0.03468351]
[1720732790063,11.91560983,3114.7,3114.6,0.03468351]
[1720732790255,10.80340171,3114.7,3114.6,0.03468351]
[1720732790579,11.91561352,3114.7,3114.6,0.03468351]
[1720732793786,10.80340171,3114.7,3114.6,0.03468351]
[1720732793979,11.91563198,3114.7,3114.6,0.03468351]
[1720732794987,3.21113,3114.2,3113.9,7.2405047]
[1720732795188,3.21113,3114.2,3113.9,0.97893478]
[1720732795189,1.11223027,3114.1,3113.9,0.97893478]
[1720732795387,1.11223027,3114.0,3113.8,2.4362]
[1720732795570,1.11223027,3113.9,3113.8,2.4362]
[1720732796079,3.21087,3114.5,3113.8,2.4362]
[1720732796292,1.11218301,3114.4,3114.0,2.3063]
[1720732796478,3.21111,3114.2,3114.0,2.3063]
[1720732796797,1.11218301,3114.1,3114.0,2.3063]
[1720732797191,3.21111,3114.2,3114.0,2.3063]
[1720732797488,1.11223158,3114.1,3114.0,2.3063]
[1720732797701,3.21111,3114.2,3114.0,2.3063]
[1720732797897,1.11222574,3114.1,3114.0,2.3063]
[1720732799897,3.2111,3114.2,3114.0,2.3063]
[1720732800077,1.11220526,3114.1,3114.0,2.3063]
[1720732800663,1.11224161,3114.1,3114.0,2.3063]
[1720732802699,1.11224161,3114.1,3114.0,2.34301141]
[1720732803270,1.11222393,3114.1,3114.0,2.34301141]
[1720732806578,3.21102,3114.3,3114.0,2.34301141]
[1720732806792,2.22443529,3114.2,3114.0,2.34301141]
[1720732807024,0.16324181,3115.2,3114.0,2.34301141]
[1720732807025,1.11221776,3114.1,3114.0,6.73855255]
[1720732807198,3.21033,3115.0,3114.1,2.4464]
[1720732807399,3.21048,3114.8,3114.1,2.4464]
[1720732807611,3.21048,3114.8,3114.2,0.72444545]
[1720732807612,1.11203406,3114.7,3114.2,0.72444545]
[1720732807814,1.11203406,3114.6,3114.2,0.72444545]
[1720732808016,1.11203406,3114.5,3114.2,0.72444545]
[1720732808321,1.11203406,3114.4,3114.3,2.2903]
[1720732808884,1.11203406,3114.4,3114.3,2.32679915]
[1720732809089,1.11203406,3114.4,3114.3,3.04437359]
[1720732809286,7.37043,3115.1,3114.3,3.04437359]
[1720732809604,1.11197915,3115.0,3114.3,3.04437359]
[1720732809809,1.11197915,3114.9,3114.3,3.04437359]
[1720732810324,1.11197915,3114.8,3114.3,3.04437359]
[1720732810520,1.11197915,3114.8,3114.4,0.52702657]
[1720732810712,1.11197915,3114.7,3114.4,0.52702657]
[1720732811013,1.11197915,3114.6,3114.5,0.03633708]
[1720732813110,1.11196046,3114.6,3114.5,0.03633708]
[1720732813694,1.11196045,3114.6,3114.5,0.03633708]
[1720732816533,1.11196045,3114.6,3114.3,5.50129]
[1720732816717,0.95,3114.9,3114.5,0.03633708]
[1720732816922,1.11197159,3114.8,3114.4,0.03641811]
[1720732817126,3.21028,3115.0,3114.6,0.03625605]
[1720732817333,3.21028,3115.0,3114.5,0.03633708]
[1720732817334,1.11197378,3114.9,3114.5,0.03633708]
[1720732817498,1.11197378,3114.8,3114.7,0.03610149]
[1720732817703,1.11196266,3114.8,3114.6,0.03618252]
[1720732817904,3.21028,3115.0,3114.7,0.03610149]
[1720732818130,1.11195358,3114.9,3114.7,0.03610149]
[1720732818298,1.11195358,3114.8,3114.3,5.50129]
[1720732818633,1.11196059,3114.7,3114.3,5.50129]
[1720732818823,1.11196059,3114.7,3114.4,0.03634457]
[1720732819025,1.11196059,3114.6,3114.4,0.03634457]
[1720732819318,1.11196059,3114.5,3114.4,0.03634457]
[1720732819937,3.21028,3115.0,3114.4,0.03634457]
[1720732820233,1.11196403,3114.9,3114.4,0.03634457]
[1720732820439,1.11196403,3114.8,3114.4,0.03634457]
[1720732820745,1.1119659,3114.7,3114.4,0.03634457]
[1720732820921,1.1119659,3114.6,3114.4,0.03634457]
[1720732821133,1.1119659,3114.5,3114.4,0.03634457]
[1720732823945,1.11196985,3114.5,3114.4,0.03634457]
[1720732827343,1.11198448,3114.5,3114.4,0.03634457]
[1720732827558,1.11198824,3114.5,3114.4,0.03634457]
[1720732827848,1.1119681,3114.5,3114.4,0.03634457]
[1720732830050,1.11201255,3114.5,3114.4,0.03634457]
[1720732830660,3.21038,3114.9,3114.4,0.03634457]
[1720732830842,1.11198314,3114.8,3114.4,0.03634457]
[1720732831560,2.2576,3114.7,3114.4,0.03634457]
[1720732831757,1.11198314,3114.6,3114.4,0.03634457]
[1720732831956,1.11198314,3114.6,3114.2,3.21103]
[1720732832121,1.11198314,3114.6,3114.5,0.03626354]
[1720732832324,1.11198314,3114.6,3114.2,3.21103]
[1720732832518,1.11198314,3114.6,3114.5,0.03627089]
[1720732832723,1.11198314,3114.6,3114.2,3.21103]
[1720732832932,1.11198314,3114.6,3114.5,0.03627089]
[1720732833134,1.11198314,3114.6,3114.2,3.21103]
[1720732833337,1.11198314,3114.6,3114.5,0.03627089]
[1720732833959,2.2576,3114.7,3114.2,3.21103]
[1720732834160,1.11200617,3114.6,3114.5,0.03627089]
[1720732834383,1.11200617,3114.6,3114.2,3.21103]
[1720732834540,1.11200617,3114.6,3114.5,0.03627089]
[1720732834726,1.11200965,3114.6,3114.2,3.21103]
[1720732834928,2.2576,3114.7,3114.5,0.03627089]
[1720732835226,2.2576,3114.7,3114.2,3.21103]
[1720732835227,1.11201101,3114.6,3114.2,3.21103]
[1720732835428,1.11199696,3114.5,3114.2,3.21103]
[1720732835659,1.11199696,3114.4,3114.2,3.21103]
[1720732835857,1.11199696,3114.3,3114.2,3.21103]
[1720732836665,1.11199696,3114.3,3114.2,3.247544]
[1720732837403,2.2576,3114.7,3114.2,3.247544]
[1720732837677,1.11199923,3114.6,3114.2,3.247544]
[1720732837845,1.11199315,3114.5,3114.2,3.247544]
[1720732838037,1.11199315,3114.4,3114.2,3.247544]
[1720732838270,1.11199315,3114.3,3114.2,3.8934254]
[1720732838468,2.4977,3114.6,3114.2,0.036514]
[1720732838669,1.11199315,3114.5,3113.9,9.5976047]
[1720732838867,1.11199315,3114.5,3114.3,0.03643296]
[1720732839072,1.11199315,3114.5,3113.9,9.5976047]
[1720732839269,1.11199315,3114.5,3114.4,0.03635192]
[1720732839474,4.32279315,3114.5,3113.9,9.5976047]
[1720732839675,1.11199315,3114.4,3113.9,9.5976047]
[1720732839976,1.11199315,3114.4,3113.9,7.2405047]
[1720732840141,1.11217846,3114.3,3113.9,7.2405047]
[1720732840345,1.11217846,3114.3,3113.7,15.6142331]
[1720732840346,2.4977,3114.1,3113.7,0.1126431]
[1720732840642,1.11222188,3114.0,3113.7,0.1126431]
[1720732840837,2.4977,3114.1,3113.7,0.1126431]
[1720732840838,1.11222188,3113.9,3113.7,0.1126431]
[1720732841174,1.11222188,3113.8,3113.7,0.1126431]
[1720732843974,2.4977,3114.1,3113.7,0.1126431]
[1720732844142,3.21151,3113.8,3113.7,0.1126431]
[1720732844473,6.62343687,3113.8,3113.7,0.1126431]
[1720732846038,5.51121,3113.8,3113.7,0.1126431]
[1720732846251,6.62360101,3113.8,3113.7,0.1126431]
[1720732846877,4.32390101,3113.8,3113.7,0.1126431]
[1720732847380,3.21151,3113.8,3113.7,0.1126431]
[1720732847673,4.32388338,3113.8,3113.7,0.1126431]
[1720732847989,4.32387949,3113.8,3113.7,0.1126431]
[1720732850147,3.21151,3113.8,3113.7,0.1126431]
[1720732850365,4.32389202,3113.8,3113.7,0.1126431]
[1720732850880,3.21151,3113.8,3113.7,0.1126431]
[1720732851110,4.3238637,3113.8,3113.7,0.1126431]
[1720732851674,4.3238637,3113.8,3113.7,0.16407185]
[1720732854406,4.32387056,3113.8,3113.7,0.16407185]
[1720732854704,1.11236056,3113.8,3113.7,0.16407185]
[1720732857014,2.4525,3114.0,3113.7,0.16407185]
[1720732857333,1.11228509,3113.9,3113.7,0.16407185]
[1720732857817,5.46509,3114.4,3113.7,5.71122185]
[1720732858018,1.11219686,3114.3,3113.7,5.71122185]
[1720732858315,5.46509,3114.4,3113.7,3.37562185]
[1720732858507,1.11221662,3114.3,3113.7,3.37562185]
[1720732860795,1.11220917,3114.2,3113.7,3.37562185]
[1720732860996,1.11220926,3114.1,3113.7,3.37562185]
[1720732861195,1.11220926,3114.0,3113.7,3.37562185]
[1720732861396,1.11220926,3114.3,3113.7,3.37562185]
[1720732861722,4.32320926,3114.3,3113.7,0.16407185]
[1720732861914,1.11220926,3114.2,3113.7,0.16407185]
[1720732863008,4.32335926,3114.2,3113.7,0.16407185]
[1720732863196,1.11220926,3114.1,3113.7,0.16407185]
[1720732863830,3.21115,3114.2,3113.7,0.16407185]
[1720732864031,1.11225314,3114.0,3113.7,0.16407185]
[1720732864349,1.11225314,3113.9,3113.7,0.16407185]
[1720732864528,1.11225314,3114.1,3113.7,0.16407185]
[1720732866320,5.67781,3114.0,3113.7,0.16407185]
[1720732866515,1.11225314,3113.9,3113.7,0.16407185]
[1720732867394,1.11231146,3113.8,3113.7,0.16407185]
[1720732867801,1.11230465,3113.8,3113.7,0.16407185]
[1720732870225,1.11233305,3113.8,3113.7,0.16407185]
[1720732870931,5.32400603,3113.8,3113.7,0.16407185]
[1720732873109,4.21166531,3113.8,3113.7,0.16407185]
[1720732873417,5.32403695,3113.8,3113.7,0.16407185]
[1720732874309,4.21166531,3113.8,3113.7,0.16407185]
[1720732874655,5.32406323,3113.8,3113.7,0.16407185]
[1720732877227,2.11255323,3113.8,3113.7,0.16407185]
[1720732877442,1.11239792,3113.8,3113.7,0.16407185]
[1720732877814,1.11229239,3113.8,3113.7,0.16407185]
[1720732878350,1.11226833,3113.8,3113.7,0.16407185]
[1720732880953,1.11229892,3113.8,3113.7,0.16407185]
[1720732881173,1.11228392,3113.8,3113.7,0.16407185]
[1720732882235,1.11229689,3113.8,3113.7,0.16407185]
[1720732884568,3.21125,3114.1,3113.7,0.16407185]
[1720732885976,2.3465,3114.7,3113.7,0.40716904]
[1720732886274,5.55709,3114.7,3113.9,5.55229]
[1720732886575,5.55709,3114.7,3114.0,0.05120244]
[1720732886943,5.55709,3114.7,3114.0,3.26248244]
[1720732887144,2.3465,3114.7,3114.0,4.23895968]
[1720732887671,5.55709,3114.7,3114.0,4.23895968]
[1720732888455,2.3465,3114.7,3114.0,4.23895968]
[1720732889267,2.3465,3114.7,3114.1,3.21119]
[1720732889594,2.3465,3114.7,3114.2,0.0509683]
[1720732892764,9.42045,3115.1,3114.2,0.0509683]
[1720732892973,3.2735,3115.0,3114.3,3.21099]
[1720732893204,3.2735,3115.0,3114.4,0.05063464]
[1720732894305,6.48377,3115.0,3114.4,0.05063464]
[1720732894602,1.11198687,3114.9,3114.4,0.05063464]
[1720732894801,6.48377,3115.0,3114.4,0.05063464]
[1720732895005,1.1119912,3114.9,3114.4,0.05063464]
[1720732896292,1.1119912,3114.9,3114.4,3.26147464]
[1720732896500,1.1119912,3114.9,3114.4,4.2375051]
[1720732897183,1.1119912,3114.8,3114.4,4.2375051]
[1720732897380,3.21018,3115.1,3114.4,4.2375051]
[1720732897381,1.1119912,3114.7,3114.4,4.2375051]
[1720732897580,1.1119912,3114.6,3114.4,4.2375051]
[1720732897782,3.21018,3115.1,3114.4,4.2375051]
[1720732897992,1.11195121,3115.0,3114.4,0.05063464]
[1720732898198,1.11195121,3114.9,3114.4,0.05063464]
[1720732898503,1.11199688,3114.8,3114.4,0.05063464]
[1720732898702,3.21018,3115.1,3114.4,0.05063464]
[1720732898920,1.1119962,3114.7,3114.4,0.05063464]
[1720732899085,1.1119962,3114.6,3114.4,0.05063464]
[1720732899283,5.63188,3115.0,3114.4,0.05063464]
[1720732899488,1.11197095,3114.9,3114.4,0.05063464]
[1720732901292,1.11201167,3114.8,3114.4,0.05063464]
[1720732901493,1.11201167,3114.7,3114.4,1.0263921]
[1720732901700,2.4216,3115.0,3114.4,4.2372321]
[1720732901903,1.11198829,3114.6,3114.4,4.2372321]
[1720732902207,3.21022,3115.1,3114.4,4.2372321]
[1720732902506,1.11195335,3115.0,3114.6,2.4067]
[1720732902828,2.22454765,3115.2,3114.6,2.4067]